bitfinex/quotes_ETHUSD_20251126
["timestamp","ask_amount","ask_price","bid_price","bid_amount"]
[1764179978805,3.29837698,3031.8,3030.5,0.4825]
[1764179978968,3.29837698,3031.8,3030.6,6.59935326]
[1764179979176,0.495,3031.7,3030.5,3.29975599]
[1764179979489,0.495,3031.7,3030.5,6.8135415]
[1764179980801,3.29828849,3031.9,3030.6,0.4825]
[1764179981003,0.495,3031.7,3030.6,0.4825]
[1764179981299,3.2985882,3031.6,3030.5,6.8135415]
[1764179981502,6.5971764,3031.6,3030.5,0.214]
[1764179981675,0.495,3031.5,3030.5,3.51376632]
[1764179981875,0.70921764,3031.4,3030.5,0.214]
[1764179982080,0.70921764,3031.4,3030.5,3.51378548]
[1764179982286,0.495,3031.3,3030.5,3.51378548]
[1764179983378,3.29862842,3031.6,3030.5,6.81357099]
[1764179983879,0.495,3031.5,3030.5,3.51378548]
[1764179984088,0.70922568,3031.4,3030.5,6.81357099]
[1764179984406,0.70922568,3031.4,3030.5,0.214]
[1764179984583,0.4672,3031.3,3030.5,0.214]
[1764179984988,0.6812,3031.3,3030.4,0.001]
[1764179985190,0.6692,3030.5,3030.4,0.001]
[1764179985491,3.96898551,3030.5,3030.4,0.001]
[1764179985804,4.43618551,3030.5,3030.4,0.001]
[1764179986005,0.70922568,3031.4,3030.4,0.001]
[1764179986208,0.1857,3030.9,3030.4,0.001]
[1764179986706,0.6529,3030.9,3030.4,0.001]
[1764179986906,0.1857,3030.9,3030.4,0.001]
[1764179987207,3.76611465,3031.3,3030.4,0.001]
[1764179987507,3.29913232,3031.1,3030.4,0.001]
[1764179988087,3.29905082,3031.2,3030.4,0.001]
[1764179988684,7.06530164,3031.2,3030.4,0.001]
[1764179988885,3.76625082,3031.2,3030.4,0.001]
[1764179989509,6.59810164,3031.2,3030.4,0.001]
[1764179989811,1.17176357,3031.1,3030.4,0.001]
[1764179990381,0.70456357,3031.1,3030.4,0.001]
[1764179990581,0.6812,3031.0,3030.4,0.001]
[1764179990810,0.4672,3031.0,3030.4,0.001]
[1764179991010,0.1857,3030.9,3030.4,0.001]
[1764179991183,0.70456357,3031.1,3030.4,0.001]
[1764179991384,6.59870004,3030.9,3030.4,0.001]
[1764179991585,0.6692,3030.5,3030.4,0.001]
[1764179991811,0.405504,3030.4,3029.7,0.001]
[1764179992010,0.4672,3030.4,3029.7,0.001]
[1764179992382,0.214,3030.3,3029.7,0.001]
[1764179992583,0.4672,3030.4,3029.7,0.001]
[1764179992785,0.1857,3030.5,3029.7,0.001]
[1764179992986,0.6529,3030.5,3029.7,0.001]
[1764179993411,3.3000033,3030.3,3029.7,0.001]
[1764179993786,0.4672,3030.2,3029.7,0.001]
[1764179994135,6.99529693,3030.3,3029.7,0.001]
[1764179994292,0.1857,3029.8,3029.7,0.001]
[1764179995086,0.4672,3030.2,3029.7,0.001]
[1764179995325,0.1857,3029.8,3029.7,0.001]
[1764179995790,3.30050302,3029.9,3029.7,0.001]
[1764179995997,3.96057784,3029.9,3029.7,0.001]
[1764179996309,3.30050302,3029.9,3029.7,0.001]
[1764179996518,0.4835,3029.8,3029.7,0.001]
[1764179997185,3.76770302,3029.9,3029.7,0.001]
[1764179997387,0.214,3030.2,3029.7,0.001]
[1764179997607,3.30022111,3030.1,3029.7,0.001]
[1764179998014,7.28208336,3030.1,3029.7,0.001]
[1764179998308,0.4835,3029.8,3029.7,0.001]
[1764179998709,0.9507,3029.8,3029.7,0.001]
[1764179998916,0.4835,3029.8,3029.7,0.001]
[1764179999417,0.9507,3029.8,3029.7,0.001]
[1764179999945,4.67635115,3029.8,3029.7,0.001]
[1764180000114,0.42510326,3029.8,3029.7,0.001]
[1764180000315,0.4835,3029.8,3029.7,0.001]
[1764180000487,0.002,3030.3,3029.7,9.41974875]
[1764180000687,0.002,3030.3,3030.2,0.5825]
[1764180001025,0.002,3030.3,3030.1,8.26314875]
[1764180001230,0.002,3030.3,3030.2,0.214]
[1764180001426,0.002,3030.7,3030.2,0.93959411]
[1764180001598,0.002,3030.7,3030.6,3.29967663]
[1764180002113,0.002,3030.7,3030.6,4.02527074]
[1764180002430,0.002,3031.0,3030.9,8.26314875]
[1764180002622,0.1857,3032.7,3031.5,8.65875834]
[1764180002789,0.4672,3032.4,3031.6,0.214]
[1764180003128,0.1857,3032.7,3031.6,0.214]
[1764180003289,0.1857,3033.6,3032.5,8.65875834]
[1764180003489,0.1857,3033.6,3032.7,3.29739176]
[1764180003702,0.1857,3033.6,3032.7,6.59478352]
[1764180003903,0.1857,3033.6,3032.3,8.65875834]
[1764180004132,0.1857,3034.2,3032.8,8.65875834]
[1764180004321,0.1857,3034.2,3032.9,0.93959411]
[1764180004523,0.1857,3034.2,3032.4,16.48856644]
[1764180004524,0.4672,3033.8,3032.4,6.59541253]
[1764180004721,0.1857,3034.2,3032.8,8.65875834]
[1764180004929,0.6529,3035.0,3032.9,0.77559411]
[1764180005236,0.4672,3034.7,3033.5,8.65875834]
[1764180005412,0.1857,3035.0,3033.6,0.93959411]
[1764180005610,0.002,3035.1,3033.8,0.72559411]
[1764180006025,0.4672,3034.4,3033.0,3.68219756]
[1764180006223,0.1857,3033.9,3033.1,0.93959411]
[1764180006427,0.1857,3033.9,3032.4,8.70875834]
[1764180006647,0.4587,3033.8,3032.5,0.214]
[1764180006878,0.4587,3033.8,3032.7,0.72559411]
[1764180007835,0.1857,3033.9,3033.1,8.65875834]
[1764180008013,0.1857,3033.9,3033.2,0.214]
[1764180008409,0.1857,3033.9,3031.9,0.05]
[1764180008410,0.4587,3033.8,3031.9,0.05]
[1764180008756,0.002,3034.0,3033.4,8.65875834]
[1764180009052,0.002,3034.0,3033.9,8.65875834]
[1764180009722,0.002,3034.0,3033.9,11.95484588]
[1764180010344,0.002,3034.0,3033.9,12.16884588]
[1764180011347,0.002,3034.0,3033.9,12.89443999]
[1764180012138,0.002,3034.0,3033.9,9.38435245]
[1764180012446,0.002,3034.0,3033.5,3.29652216]
[1764180012647,0.1884,3033.9,3033.7,0.214]
[1764180012849,0.1884,3032.8,3031.8,8.65875834]
[1764180013055,0.1884,3032.8,3031.9,0.214]
[1764180013364,0.4587,3033.6,3032.4,0.72559411]
[1764180013520,0.4587,3033.6,3032.5,0.214]
[1764180013715,3.75513948,3033.6,3032.7,0.72559411]
[1764180013909,1.1638338,3033.6,3032.7,0.72559411]
[1764180014115,1.1638338,3033.6,3032.8,8.65875834]
[1764180014311,1.1638338,3033.6,3032.7,0.72559411]
[1764180014312,0.1884,3033.9,3033.3,8.65875834]
[1764180014571,0.1884,3033.9,3032.6,9.89250147]
[1764180014572,0.002,3034.0,3033.8,8.65875834]
[1764180014730,0.002,3034.0,3033.9,0.214]
[1764180015850,0.484,3034.7,3033.8,8.65875834]
[1764180015851,6.89857424,3034.7,3033.8,8.65875834]
[1764180016011,0.68985742,3034.6,3033.9,0.214]
[1764180016656,0.68985742,3034.6,3033.4,9.38435245]
[1764180016826,0.68985742,3034.6,3033.5,0.214]
[1764180017166,0.68985742,3034.6,3033.4,9.38435245]
[1764180017326,0.68985742,3034.6,3032.9,8.65875834]
[1764180017527,1.38730059,3034.5,3033.0,0.214]
[1764180017840,6.59108884,3034.4,3033.0,0.214]
[1764180018014,6.59108884,3034.4,3033.0,3.51103643]
[1764180018015,10.37063326,3034.4,3033.0,3.51103643]
[1764180018213,0.484,3034.3,3033.0,3.51103643]
[1764180018413,0.405504,3034.2,3032.5,0.72559411]
[1764180018614,0.405504,3034.2,3032.8,0.72559411]
[1764180018842,0.484,3034.1,3032.9,8.65875834]
[1764180019027,0.2152,3034.1,3032.9,8.65875834]
[1764180019238,0.405504,3034.3,3032.7,0.214]
[1764180019417,0.405504,3034.3,3032.7,0.93959411]
[1764180019616,9.88728495,3034.2,3032.7,0.214]
[1764180019823,6.5915233,3034.2,3032.7,0.214]
[1764180020040,0.69970273,3034.1,3032.9,8.65875834]
[1764180020222,3.29576165,3034.2,3032.9,8.65875834]
[1764180020434,3.29576165,3034.2,3032.7,10.10615698]
[1764180020435,3.29543582,3034.5,3033.4,8.65875834]
[1764180020646,3.29543582,3034.5,3033.5,0.214]
[1764180020815,9.88640408,3034.5,3033.5,0.214]
[1764180021020,1.54162615,3034.4,3033.5,0.214]
[1764180021665,3.29652216,3033.5,3032.6,3.29847746]
[1764180021831,3.29652216,3033.5,3032.7,0.214]
[1764180021832,6.59304432,3033.5,3032.7,0.214]
[1764180022149,0.192,3032.7,3032.6,0.001]
[1764180023715,3.97339176,3032.7,3032.6,0.001]
[1764180023921,5.10596323,3032.7,3032.6,0.001]
[1764180024121,5.10596323,3032.7,3030.4,3.34980197]
[1764180024122,0.889504,3032.6,3030.5,8.65875834]
[1764180024328,0.889504,3032.6,3031.0,8.65875834]
[1764180024531,0.405504,3032.4,3031.1,0.214]
[1764180024847,0.484,3032.5,3031.1,0.214]
[1764180025061,0.484,3032.4,3031.1,0.214]
[1764180025615,0.405504,3032.3,3031.1,0.214]
[1764180025847,0.484,3032.4,3031.2,3.29902348]
[1764180026017,3.78171797,3032.4,3031.2,15.2568053]
[1764180026220,0.192,3032.7,3031.8,8.65875834]
[1764180026459,3.29752521,3032.6,3031.8,8.65875834]
[1764180026844,3.48939755,3032.7,3031.8,8.65875834]
[1764180027045,6.7867951,3032.7,3031.8,8.65875834]
[1764180027248,0.484,3032.6,3031.9,0.214]
[1764180027457,1.05681927,3032.5,3031.9,0.214]
[1764180027826,6.59543594,3032.4,3031.9,0.214]
[1764180028226,0.484,3032.3,3031.9,0.214]
[1764180029852,6.59587098,3032.2,3031.5,0.214]
[1764180030049,0.7079871,3032.2,3031.5,0.214]
[1764180030254,3.48942835,3032.7,3031.8,8.65875834]
[1764180030453,0.484,3032.9,3031.9,0.72559411]
[1764180030454,0.192,3032.9,3031.9,0.72559411]
[1764180030656,0.484,3033.2,3032.3,8.65875834]
[1764180030830,3.78052216,3033.5,3032.3,8.65875834]
[1764180031026,7.47435788,3033.5,3032.3,8.65875834]
[1764180031226,0.192,3032.4,3031.8,8.65875834]
[1764180031447,0.192,3032.4,3031.9,0.214]
[1764180031764,0.192,3031.9,3031.7,0.214]
[1764180031935,0.192,3031.9,3031.6,0.214]
[1764180032123,3.49027473,3031.9,3031.6,0.214]
[1764180032329,3.97427473,3031.9,3031.6,0.214]
[1764180032550,3.97427473,3031.9,3030.9,6.59870004]
[1764180032551,0.484,3031.8,3030.9,3.29935002]
[1764180032751,0.405504,3031.7,3031.5,0.001]
[1764180033161,0.405504,3031.5,3029.6,0.001]
[1764180033452,0.405504,3031.3,3029.6,3.30176577]
[1764180033669,0.405504,3031.3,3029.6,0.001]
[1764180033825,1.13109811,3030.9,3030.8,0.001]
[1764180034260,0.484,3030.9,3030.8,0.001]
[1764180034431,3.48979154,3032.4,3030.8,0.001]
[1764180034432,0.484,3031.3,3030.8,0.001]
[1764180034625,3.51269701,3031.5,3030.8,0.001]
[1764180034626,6.81139402,3031.5,3030.8,0.001]
[1764180034838,1.2056898,3031.4,3030.8,0.001]
[1764180035356,0.484,3031.3,3030.8,0.001]
[1764180035959,0.484,3031.8,3030.8,0.001]
[1764180036256,0.405504,3031.6,3030.8,0.001]
[1764180036634,0.484,3031.5,3030.8,0.001]
[1764180037933,6.59761166,3031.4,3030.8,0.001]
[1764180038274,2.05325928,3031.3,3030.8,0.001]
[1764180038474,0.484,3031.2,3030.8,0.001]
[1764180039655,6.59761166,3031.4,3030.8,0.001]
[1764180039855,3.29880583,3031.4,3030.8,0.001]
[1764180040026,0.484,3031.6,3030.8,0.001]
[1764180040027,3.78259192,3031.6,3030.8,0.001]
[1764180040233,3.2983714,3031.8,3030.8,0.001]
[1764180040469,6.59684258,3031.8,3030.8,0.001]
[1764180040671,0.484,3031.7,3030.8,0.001]
[1764180041276,3.49036599,3031.9,3031.1,8.65875834]
[1764180041577,0.192,3031.9,3031.1,8.65875834]
[1764180041750,0.484,3031.8,3030.8,0.001]
[1764180041950,1.13109811,3031.5,3030.8,0.001]
[1764180042149,0.405504,3031.3,3030.8,0.001]
[1764180042371,0.214,3031.2,3030.8,0.001]
[1764180042670,0.484,3031.2,3030.8,0.001]
[1764180042873,0.214,3031.4,3030.8,0.001]
[1764180043168,3.2976706,3032.5,3030.8,0.001]
[1764180043169,3.29782673,3032.3,3030.9,0.72559411]
[1764180043372,3.29782673,3032.3,3030.8,8.63065659]
[1764180043373,0.192,3031.9,3030.8,0.215]
[1764180043576,0.676,3031.9,3030.8,0.215]
[1764180044267,3.2983706,3031.8,3030.8,6.81389122]
[1764180044848,0.34896706,3032.3,3031.0,8.62965659]
[1764180045049,6.80965346,3032.3,3031.0,8.62965659]
[1764180045275,10.58018019,3032.3,3031.0,8.62965659]
[1764180045473,0.4727,3032.2,3030.8,0.215]
[1764180045672,0.4727,3032.2,3030.8,3.51439363]
[1764180045973,0.4727,3032.2,3030.8,6.81385251]
[1764180046176,6.5960885,3032.1,3030.9,6.59866102]
[1764180046377,6.5960885,3032.1,3031.0,8.62965659]
[1764180046547,3.29796636,3032.2,3031.1,0.72559411]
[1764180047170,3.29788872,3032.3,3031.1,0.72559411]
[1764180047500,0.192,3033.0,3031.7,0.72559411]
[1764180047775,3.29797153,3034.1,3032.2,8.62965659]
[1764180047776,0.1951,3033.2,3032.2,8.62965659]
[1764180048159,3.2965508,3033.5,3032.3,6.59565346]
[1764180048361,3.2965508,3033.5,3032.4,0.214]
[1764180048760,0.29178826,3033.6,3032.4,0.214]
[1764180048962,0.09978826,3033.6,3032.8,8.62965659]
[1764180049361,3.3962098,3033.6,3032.8,8.62965659]
[1764180049885,3.29634416,3033.7,3032.8,8.62965659]
[1764180050082,3.29622618,3033.8,3032.8,8.62965659]
[1764180050270,6.59245236,3033.8,3032.9,3.29717432]
[1764180050456,6.59245236,3033.8,3033.0,0.214]
[1764180050683,0.002,3033.6,3033.0,0.214]
[1764180052859,0.002,3033.6,3033.0,3.511049]
[1764180053366,0.002,3033.6,3031.8,8.62965659]
[1764180053557,0.002,3033.6,3031.9,0.93959411]
[1764180053762,0.002,3033.6,3032.4,0.72559411]
[1764180054062,0.002,3033.6,3032.5,0.214]
[1764180054591,0.002,3033.6,3032.9,8.62965659]
[1764180054761,0.002,3033.6,3033.0,4.23664805]
[1764180054960,0.002,3033.6,3033.0,7.53371366]
[1764180055272,0.002,3033.6,3033.0,4.23664805]
[1764180055594,0.002,3033.6,3033.0,7.53371366]
[1764180056513,0.002,3033.6,3033.0,4.23664805]
[1764180056705,0.002,3033.6,3033.0,7.53371366]
[1764180057065,0.002,3033.6,3032.5,0.72559411]
[1764180057294,0.002,3033.6,3032.7,0.72559411]
[1764180058597,0.002,3033.6,3032.8,0.214]
[1764180059382,0.002,3033.6,3033.0,0.72559411]
[1764180059580,0.002,3033.6,3032.9,0.72559411]
[1764180059813,0.002,3033.6,3033.2,0.72559411]
[1764180060093,0.002,3033.6,3033.3,0.214]
[1764180060598,0.002,3034.5,3034.0,2.784002]
[1764180060800,0.002,3034.8,3034.1,0.05]
[1764180060969,0.002,3034.8,3034.2,0.214]
[1764180061408,0.002,3034.8,3034.3,3.29565303]
[1764180061720,0.002,3034.8,3034.1,4.02144255]
[1764180061921,0.002,3034.8,3031.6,9.8957646]
[1764180061922,0.4727,3034.6,3031.6,9.8957646]
[1764180062075,0.1951,3033.8,3031.6,6.5971764]
[1764180062415,0.405504,3033.6,3031.7,0.214]
[1764180062569,0.405504,3033.6,3031.6,3.2985882]
[1764180062570,0.405504,3033.6,3031.6,0.214]
[1764180062770,0.4727,3033.5,3031.8,0.72559411]
[1764180062983,0.4727,3033.5,3031.7,8.62965659]
[1764180063174,0.4727,3033.5,3031.8,0.72559411]
[1764180063590,9.88989252,3033.4,3031.8,6.5967412]
[1764180064074,10.36259252,3033.4,3031.8,6.5967412]
[1764180064267,9.88989252,3033.4,3031.8,6.5967412]
[1764180064473,6.59326168,3033.4,3031.9,0.72559411]
[1764180064798,6.59326168,3033.4,3032.1,8.27389172]
[1764180064977,9.88989252,3033.4,3032.2,0.214]
[1764180065295,10.36259252,3033.4,3032.2,0.214]
[1764180065669,7.06596168,3033.4,3032.2,0.214]
[1764180065876,7.06596168,3033.4,3032.2,3.51192139]
[1764180066080,11.06918869,3033.4,3032.2,0.214]
[1764180066813,0.4741,3033.3,3032.2,0.214]
[1764180067025,0.1951,3033.8,3032.5,8.27389172]
[1764180067204,0.1951,3034.9,3032.3,9.89348019]
[1764180067205,0.1937,3034.0,3033.0,0.72559411]
[1764180067379,0.1937,3034.0,3033.1,0.214]
[1764180067699,6.59217508,3033.9,3033.1,0.214]
[1764180068695,3.29608754,3033.9,3033.1,3.51094943]
[1764180069291,6.59217508,3033.9,3033.1,3.51094943]
[1764180069804,0.4741,3033.8,3033.0,0.001]
[1764180069974,1.03623626,3033.7,3033.0,0.001]
[1764180070296,0.4741,3033.8,3033.0,0.001]
[1764180070698,3.29608754,3033.9,3033.0,0.001]
[1764180070898,3.29608754,3033.9,3033.0,3.29806561]
[1764180071197,6.59217508,3033.9,3033.0,6.59513122]
[1764180072109,0.1937,3034.0,3033.0,6.59513122]
[1764180072110,3.48968886,3034.0,3033.0,6.59513122]
[1764180072314,6.78567772,3034.0,3033.1,0.72559411]
[1764180072531,6.78567772,3034.0,3033.2,0.214]
[1764180073099,0.1937,3034.0,3033.2,0.214]
[1764180073397,0.002,3034.5,3033.7,8.27389172]
[1764180073598,0.002,3034.5,3034.1,8.27389172]
[1764180073784,0.002,3034.5,3034.2,0.214]
[1764180074319,0.002,3034.5,3034.2,3.50975633]
[1764180074613,0.002,3034.5,3034.3,0.214]
[1764180074987,0.002,3034.5,3034.1,8.27389172]
[1764180075185,0.002,3034.5,3034.2,0.214]
[1764180075787,0.002,3034.5,3033.1,11.62076981]
[1764180075788,0.4605,3034.4,3033.1,11.62076981]
[1764180076011,0.4605,3034.4,3033.2,0.214]
[1764180076012,6.59130606,3034.3,3033.2,0.214]
[1764180076486,0.4605,3034.2,3033.2,0.214]
[1764180077897,6.59174054,3034.1,3033.2,0.214]
[1764180078099,6.59174054,3034.1,3033.0,11.5719155]
[1764180078100,10.92241655,3034.1,3033.0,0.001]
[1764180078317,0.1896,3033.3,3033.0,0.215]
[1764180078610,0.1896,3033.3,3033.0,0.001]
[1764180078845,0.1896,3033.3,3031.3,0.05]
[1764180078846,1.080004,3033.2,3030.9,3.29935002]
[1764180079139,1.080004,3033.2,3031.0,0.93959411]
[1764180079339,0.405504,3033.0,3031.1,8.27389172]
[1764180079542,0.214,3032.9,3031.1,8.27389172]
[1764180079845,0.214,3032.9,3030.8,0.001]
[1764180079846,8.27389172,3032.3,3030.8,0.001]
[1764180080021,1.13109811,3032.0,3030.8,0.001]
[1764180080423,0.405504,3031.8,3030.8,0.001]
[1764180080928,0.6745,3031.7,3030.8,0.001]
[1764180081229,0.1896,3030.9,3030.8,0.001]
[1764180081931,0.1896,3031.2,3030.8,0.001]
[1764180082111,3.48862348,3031.2,3030.8,0.001]
[1764180082722,0.4605,3031.9,3030.8,0.001]
[1764180082921,0.4605,3032.4,3031.3,7.1892113]
[1764180083234,3.94741332,3032.8,3031.4,0.93959411]
[1764180083629,7.24472664,3032.8,3031.4,0.93959411]
[1764180083818,3.94741332,3032.8,3031.4,0.93959411]
[1764180084132,0.1896,3032.8,3031.8,7.1892113]
[1764180084339,0.1896,3033.3,3032.3,7.1892113]
[1764180084642,0.4605,3034.1,3032.8,7.1892113]
[1764180084803,0.4605,3034.1,3032.9,0.214]
[1764180085210,0.4625,3034.5,3033.3,7.1892113]
[1764180085512,0.4625,3034.5,3032.9,0.214]
[1764180085513,0.4605,3034.2,3033.2,0.214]
[1764180085834,0.72414289,3034.1,3033.2,0.214]
[1764180086002,0.72414289,3034.1,3033.2,6.80765562]
[1764180086203,3.29579132,3034.2,3033.2,3.51080741]
[1764180086402,0.1896,3034.3,3033.2,3.51080741]
[1764180086648,0.1896,3034.3,3032.9,0.72559411]
[1764180086649,7.24140642,3034.3,3032.9,0.72559411]
[1764180086844,10.53705963,3034.3,3033.0,0.214]
[1764180087018,1.51420596,3034.2,3032.8,3.29724634]
[1764180087334,1.51420596,3034.2,3033.0,0.214]
[1764180087506,0.4605,3034.1,3033.0,0.214]
[1764180087700,0.4605,3034.1,3032.4,0.72559411]
[1764180087903,6.5919578,3034.0,3032.5,3.51153517]
[1764180088235,1.03483445,3033.9,3032.6,0.72559411]
[1764180088726,6.5919578,3034.0,3032.6,0.72559411]
[1764180088924,3.2959789,3034.0,3032.8,7.1892113]
[1764180089102,6.5919578,3034.0,3032.8,7.1892113]
[1764180089438,7.0524578,3034.0,3032.8,7.1892113]
[1764180090140,7.0524578,3034.0,3032.9,3.29717432]
[1764180090441,7.77930358,3034.0,3032.9,6.59434864]
[1764180090618,7.77930358,3034.0,3032.9,3.29717432]
[1764180090814,7.31880358,3034.0,3032.6,0.72559411]
[1764180091017,7.31880358,3034.0,3032.3,7.1892113]
[1764180091018,0.4605,3033.9,3032.7,0.214]
[1764180091618,0.216,3034.2,3032.8,7.1892113]
[1764180091820,0.002,3034.2,3033.3,7.1892113]
[1764180092019,0.002,3034.2,3033.4,0.214]
[1764180092213,0.002,3034.2,3033.5,6.59304432]
[1764180092414,0.4625,3034.2,3033.4,3.51062361]
[1764180092720,0.4625,3034.2,3032.5,7.1892113]
[1764180092918,0.4625,3034.2,3032.6,0.214]
[1764180093135,0.4625,3034.2,3032.6,0.93959411]
[1764180093939,0.4625,3034.2,3033.0,7.1892113]
[1764180094138,6.59174054,3034.1,3033.1,3.2969569]
[1764180094340,0.70542405,3034.0,3033.1,0.214]
[1764180094518,1.16592405,3034.0,3033.1,0.214]
[1764180094720,0.6501,3033.9,3033.1,0.214]
[1764180096738,0.002,3034.2,3033.2,3.29684821]
[1764180096915,3.29776165,3034.2,3033.2,3.29684821]
[1764180097122,0.32977617,3034.1,3033.2,3.29684821]
[1764180097316,0.32977617,3034.1,3033.1,3.29691287]
[1764180097643,3.29776165,3034.2,3033.0,13.99733792]
[1764180097860,0.002,3034.2,3033.5,7.1892113]
[1764180098155,0.002,3034.2,3033.6,0.214]
[1764180098515,0.002,3034.2,3033.6,3.5104115]
[1764180098737,0.002,3034.2,3033.4,0.214]
[1764180098949,0.002,3034.2,3033.8,7.1892113]
[1764180099116,0.002,3034.2,3033.9,0.214]
[1764180100716,0.002,3034.2,3033.9,6.80614557]
[1764180100921,0.002,3034.2,3033.9,0.214]
[1764180101847,0.002,3034.2,3033.6,7.1892113]
[1764180102214,0.002,3034.2,3033.2,13.18739284]
[1764180102215,0.002,3034.2,3033.2,3.29684821]
[1764180102415,0.4625,3034.2,3033.1,7.1892113]
[1764180102615,6.59174054,3034.1,3033.0,0.214]
[1764180102854,6.59174054,3034.1,3032.9,0.214]
[1764180103027,0.4605,3034.0,3032.9,0.93959411]
[1764180103234,1.16592405,3034.0,3032.9,8.12880541]
[1764180103437,0.1896,3033.9,3032.9,8.12880541]
[1764180103914,0.1896,3033.9,3032.9,0.93959411]
[1764180104538,0.4516,3033.8,3032.9,0.93959411]
[1764180104844,3.48569285,3033.9,3033.0,6.59413122]
[1764180105017,0.1896,3033.9,3033.0,6.59413122]
[1764180105213,3.4857014,3033.9,3033.0,6.59413122]
[1764180105418,6.7818028,3033.9,3033.0,3.29706561]
[1764180105644,7.2334028,3033.9,3033.0,3.29706561]
[1764180105850,7.2334028,3033.9,3033.0,6.59413122]
[1764180105851,0.6412,3033.9,3033.0,6.59413122]
[1764180106016,0.002,3034.2,3033.4,0.72559411]
[1764180106220,0.002,3034.2,3033.5,0.214]
[1764180106742,0.002,3034.2,3033.8,6.59239236]
[1764180106917,0.002,3034.2,3033.9,0.214]
[1764180108239,0.002,3034.2,3033.4,0.72559411]
[1764180108441,0.002,3034.2,3033.5,3.51052216]
[1764180108651,0.002,3034.2,3033.6,0.72559411]
[1764180108851,0.002,3034.2,3033.7,6.59260968]
[1764180109551,0.002,3034.2,3033.8,8.26468492]
[1764180109855,0.002,3034.2,3033.9,0.214]
[1764180110752,0.002,3034.2,3033.9,0.93959411]
[1764180110968,0.002,3034.2,3034.1,0.72559411]
[1764180112350,0.002,3034.2,3034.1,0.93959411]
[1764180113049,0.002,3034.2,3034.1,4.23546438]
[1764180115356,0.002,3034.2,3034.1,4.02146438]
[1764180115670,0.002,3034.2,3034.1,4.23446438]
[1764180116801,0.002,3034.5,3034.1,10.82620492]
[1764180117079,0.002,3034.7,3034.6,0.72559411]
[1764180117283,3.32534606,3036.5,3034.3,0.05]
[1764180117284,0.6336,3035.9,3034.3,0.05]
[1764180117482,3.2940963,3035.8,3034.7,0.72559411]
[1764180117670,0.6336,3035.9,3034.7,0.72559411]
[1764180118379,3.29405494,3035.8,3034.7,0.72559411]
[1764180118582,3.29420549,3035.7,3034.7,0.72559411]
[1764180119079,3.29407114,3035.8,3034.9,0.72559411]
[1764180119279,3.29407114,3035.8,3035.0,0.213]
[1764180119487,0.6336,3035.9,3035.0,0.213]
[1764180120166,3.92751887,3035.9,3035.0,0.213]
[1764180120862,0.4516,3035.5,3034.7,3.29517752]
[1764180121063,0.182,3035.9,3034.8,0.93859411]
[1764180121773,3.92758534,3035.9,3034.8,0.93859411]
[1764180121975,0.6336,3035.9,3034.8,0.93859411]
[1764180122175,3.92757517,3035.9,3034.8,0.93859411]
[1764180122381,0.6336,3035.9,3034.8,0.93859411]
[1764180122703,0.182,3035.9,3034.8,0.93859411]
[1764180123055,0.002,3035.5,3035.0,0.72559411]
[1764180123857,0.002,3035.5,3035.4,8.99027903]
[1764180124057,0.002,3035.5,3035.4,9.20327903]
[1764180124469,0.002,3035.8,3035.5,0.72559411]
[1764180124666,0.002,3035.8,3035.5,0.52559411]
[1764180125066,0.002,3035.8,3035.6,6.58848332]
[1764180125793,0.002,3035.8,3035.7,2.611172]
[1764180126289,0.002,3035.8,3035.7,3.06234926]
[1764180126498,0.002,3035.8,3035.7,2.611172]
[1764180126697,0.002,3035.8,3035.7,3.33676611]
[1764180126899,0.9593,3035.8,3034.7,0.213]
[1764180127097,0.1972,3034.8,3034.7,0.213]
[1764180127466,0.1972,3034.8,3034.3,3.29563257]
[1764180127467,0.6874,3034.8,3033.6,3.2964135]
[1764180127680,0.6874,3034.8,3033.7,0.93859411]
[1764180127879,0.1972,3034.8,3033.7,0.93859411]
[1764180128285,0.1972,3034.8,3033.6,6.592827]
[1764180128501,0.1972,3034.8,3033.8,0.213]
[1764180128884,0.1972,3034.8,3033.6,9.8892405]
[1764180128885,0.1972,3034.7,3033.7,0.0936]
[1764180129091,3.492442,3034.7,3034.1,0.72559411]
[1764180129287,0.1972,3034.7,3034.0,0.72559411]
[1764180129588,0.1972,3034.7,3034.1,0.213]
[1764180129969,6.78768827,3034.7,3033.5,3.29745401]
[1764180130170,0.1972,3034.7,3033.6,0.213]
[1764180130382,0.1972,3034.7,3033.6,0.93859411]
[1764180131078,0.1972,3033.7,3033.5,0.001]
[1764180131395,3.78559896,3034.6,3033.5,0.001]
[1764180131396,3.78556594,3034.6,3033.5,0.001]
[1764180131606,0.4902,3034.5,3033.5,0.001]
[1764180133017,0.1972,3034.7,3033.5,0.001]
[1764180133018,0.1972,3034.7,3033.8,0.05]
[1764180133186,0.4902,3035.6,3034.4,0.0936]
[1764180133383,0.4995,3036.8,3034.6,0.72559411]
[1764180133384,3.78408533,3036.0,3034.6,0.72559411]
[1764180133789,0.4902,3036.4,3035.1,0.72559411]
[1764180134001,0.4902,3036.2,3034.9,0.05]
[1764180134199,0.4995,3036.8,3034.6,0.72559411]
[1764180134200,0.4559,3036.0,3034.6,0.05]
[1764180134410,0.4559,3036.0,3034.7,0.4002]
[1764180134685,3.75003314,3035.7,3034.4,0.0936]
[1764180134926,3.75003314,3035.7,3034.4,0.81919411]
[1764180135084,0.4559,3035.6,3034.4,0.0936]
[1764180135292,0.4559,3035.6,3034.5,0.213]
[1764180135617,0.4559,3035.6,3034.4,0.72559411]
[1764180135792,0.4559,3035.6,3034.5,0.213]
[1764180135987,0.70441772,3035.5,3034.5,0.213]